bitfinex/quotes_SOLUSD_20251025
["timestamp","ask_amount","ask_price","bid_price","bid_amount"]
[1761388002843,22.88,191.9,191.89,0.1]
[1761388003138,22.88,191.9,191.86,5.31212613]
[1761388003139,33.75647521,191.87,191.86,0.1]
[1761388003311,73.79055633,191.87,191.86,0.1]
[1761388003516,74.08055633,191.87,191.86,0.1]
[1761388003840,76.16796663,191.87,191.86,0.1]
[1761388004215,81.37982882,191.87,191.86,0.1]
[1761388004417,81.52690641,191.87,191.86,0.1]
[1761388004633,82.02690641,191.87,191.86,0.1]
[1761388006440,81.52690641,191.87,191.86,0.1]
[1761388009346,79.14949611,191.87,191.86,0.1]
[1761388012633,42.92949611,191.87,191.86,0.1]
[1761388012830,79.14949611,191.87,191.86,0.8]
[1761388013748,79.14949611,191.87,191.86,0.1]
[1761388018248,79.15677417,191.87,191.86,0.1]
[1761388022865,42.93677417,191.87,191.86,0.78]
[1761388023043,79.17677417,191.87,191.86,0.78]
[1761388023545,26.84843677,191.87,191.86,0.78]
[1761388023740,0.14707759,191.87,191.86,0.78]
[1761388024868,23.02707759,191.87,191.86,0.78]
[1761388025437,28.23893978,191.87,191.86,0.78]
[1761388026077,0.14707759,191.87,191.86,0.78]
[1761388026246,0.14707759,191.88,191.86,0.78]
[1761388026445,0.14707759,191.9,191.86,0.78]
[1761388026857,22.88,191.88,191.86,0.78]
[1761388027455,22.88,191.87,191.86,0.78]
[1761388028253,5.35821958,191.9,191.86,0.78]
[1761388028254,22.88,191.88,191.86,0.78]
[1761388028458,23.02707759,191.88,191.86,0.78]
[1761388028653,22.88,191.88,191.86,0.78]
[1761388030049,28.09160332,191.88,191.86,0.78]
[1761388030251,0.14707759,191.87,191.86,0.1]
[1761388030548,0.14707759,191.87,191.86,0.78]
[1761388033066,28.23893978,191.87,191.86,0.1]
[1761388033268,30.84845073,191.87,191.86,0.1]
[1761388033465,41.72492594,191.87,191.86,0.1]
[1761388035269,45.54911888,191.87,191.86,0.1]
[1761388036464,147.74911888,191.87,191.86,0.1]
[1761388036654,144.99253034,191.87,191.86,0.1]
[1761388036857,147.60204129,191.87,191.86,0.1]
[1761388037349,183.82204129,191.87,191.86,0.1]
[1761388038975,142.3901791,191.87,191.86,0.78]
[1761388040351,147.60204129,191.87,191.86,0.78]
[1761388040764,147.60204129,191.87,191.86,0.1]
[1761388041053,147.89204129,191.87,191.86,0.1]
[1761388041472,149.97945159,191.87,191.86,0.1]
[1761388043579,185.90945159,191.87,191.86,0.1]
[1761388045065,149.68945159,191.87,191.86,0.1]
[1761388045379,185.90945159,191.87,191.86,0.1]
[1761388047669,186.19945159,191.87,191.86,0.1]
[1761388048690,185.26065502,191.87,191.86,0.1]
[1761388049769,184.97065502,191.87,191.86,0.1]
[1761388053679,148.75065502,191.87,191.86,0.1]
[1761388053885,184.97065502,191.87,191.86,0.1]
[1761388054780,148.75065502,191.87,191.86,0.1]
[1761388054986,184.97065502,191.87,191.86,0.81]
[1761388055483,184.97065502,191.87,191.86,0.1]
[1761388055684,182.88324472,191.87,191.86,0.1]
[1761388058701,181.21253034,191.87,191.86,0.1]
[1761388058879,182.88324472,191.87,191.86,0.81]
[1761388062092,139.78066815,191.87,191.86,0.81]
[1761388062279,2.08719246,191.91,191.86,0.81]
[1761388062280,1.67071438,191.89,191.86,0.81]
[1761388062478,1.67071438,191.87,191.86,0.81]
[1761388062676,5.49624499,191.87,191.86,0.81]
[1761388064279,21.58433234,191.87,191.86,0.1]
[1761388064592,57.80433234,191.87,191.86,0.1]
[1761388064896,57.80433234,191.87,191.86,0.81]
[1761388070613,40.04528056,191.87,191.86,0.81]
[1761388070795,3.82528056,191.87,191.86,0.81]
[1761388070997,3.82556139,191.87,191.86,0.81]
[1761388071223,26.70556139,191.87,191.86,0.81]
[1761388071907,28.37627577,191.87,191.86,0.81]
[1761388074805,5.49803762,191.87,191.86,0.81]
[1761388079205,1.67071438,191.87,191.86,0.81]
[1761388079400,5.4986519,191.87,191.86,0.81]
[1761388079991,5.49864173,191.87,191.86,0.81]
[1761388081516,28.37864173,191.87,191.86,0.81]
[1761388082110,33.59050392,191.87,191.86,0.81]
[1761388083120,44.46697913,191.87,191.86,0.1]
[1761388083507,44.46697913,191.87,191.86,0.8]
[1761388083901,80.68697913,191.87,191.86,0.8]
[1761388086408,58.09697913,191.87,191.86,0.1]
[1761388086609,57.80697913,191.87,191.86,0.1]
[1761388090130,58.09697913,191.87,191.86,0.1]
[1761388090734,57.80697913,191.87,191.86,0.1]
[1761388094310,57.80666827,191.87,191.86,0.1]
[1761388100631,21.58666827,191.87,191.86,0.1]
[1761388100832,57.80666827,191.87,191.86,0.1]
[1761388101313,56.13595389,191.87,191.86,0.1]
[1761388101515,57.80666827,191.87,191.86,0.8]
[1761388101731,57.78666827,191.87,191.86,0.8]
[1761388106740,40.02761649,191.87,191.86,0.8]
[1761388106947,10.85727065,191.87,191.86,0.8]
[1761388107132,10.71019306,191.87,191.86,0.8]
[1761388107328,44.46666827,191.87,191.86,0.8]
[1761388107738,28.37833087,191.87,191.86,0.8]
[1761388107933,28.52540846,191.87,191.86,0.8]
[1761388109546,44.61374586,191.87,191.86,0.8]
[1761388110125,44.6145084,191.87,191.86,0.8]
[1761388110851,45.55370702,191.87,191.86,0.8]
[1761388116152,47.64079058,191.87,191.86,0.8]
[1761388122871,31.55245318,191.87,191.86,0.8]
[1761388123652,36.76431537,191.87,191.86,0.8]
[1761388127275,83.84079058,191.87,191.86,0.1]
[1761388127777,61.25079058,191.87,191.86,0.1]
[1761388130976,61.75079058,191.87,191.86,0.1]
[1761388131186,10.87647521,191.86,191.85,0.1]
[1761388131391,17.60476724,191.86,191.85,0.1]
[1761388131980,19.69239543,191.86,191.85,0.1]
[1761388135686,24.90452927,191.86,191.85,0.1]
[1761388138386,24.61452927,191.86,191.85,0.79]
[1761388139463,60.81452927,191.86,191.85,0.79]
[1761388144371,60.81077064,191.86,191.85,0.79]
[1761388151893,11.12438243,191.86,191.85,0.79]
[1761388152095,29.3145334,191.86,191.85,0.79]
[1761388152891,34.52666724,191.86,191.85,0.79]
[1761388153391,11.64666724,191.86,191.85,0.79]
[1761388154598,29.3145334,191.86,191.85,0.79]
[1761388156588,26.7046204,191.86,191.85,0.79]
[1761388157717,0.14707759,191.87,191.85,6.00240552]
[1761388157882,26.0416719,192.0,191.85,8.61231852]
[1761388157883,2.609913,191.92,191.85,8.61231852]
[1761388158076,3.8250506,191.91,191.86,3.329913]
[1761388158476,0.14707759,191.96,191.89,2.609913]
[1761388158699,0.14707759,191.96,191.87,16.36496362]
[1761388158893,2.609913,191.94,191.88,2.609913]
[1761388159077,25.489913,191.94,191.88,3.329913]
[1761388159283,25.489913,191.94,191.89,16.36496362]
[1761388159584,25.489913,191.94,191.89,0.72]
[1761388159775,25.489913,191.94,191.9,5.93104742]
[1761388159978,25.489913,191.94,191.9,21.57601104]
[1761388160210,25.489913,191.94,191.91,0.68]
[1761388160403,22.88,191.94,191.91,0.68]
[1761388161405,22.88,191.94,191.91,16.32496362]
[1761388161902,22.88,191.94,191.92,0.68]
[1761388162495,0.14707759,191.96,191.92,16.32496362]
[1761388162690,25.489913,191.97,191.93,0.68]
[1761388163215,25.489913,191.97,191.93,5.89010036]
[1761388163582,22.88,191.95,191.94,0.68]
[1761388165389,2.609913,191.95,191.94,0.68]
[1761388166083,2.609913,191.95,191.92,0.68]
[1761388166309,2.609913,191.93,191.92,0.68]
[1761388166491,2.609913,191.93,191.91,0.68]
[1761388168813,2.609913,191.93,191.89,21.53782793]
[1761388169116,3.309913,191.93,191.89,21.53782793]
[1761388169291,2.609913,191.92,191.89,20.85782793]
[1761388169491,2.609913,191.92,191.9,0.68]
[1761388169809,2.609913,191.93,191.9,0.68]
[1761388170517,2.609913,191.93,191.9,5.89094387]
[1761388170715,2.609913,191.93,191.91,0.68]
[1761388172122,0.84707759,191.94,191.91,0.68]
[1761388172324,2.609913,191.93,191.91,0.68]
[1761388172821,2.51581321,191.94,191.91,0.68]
[1761388175417,1.81581321,191.94,191.91,0.68]
[1761388177020,2.51581321,191.94,191.91,0.68]
[1761388178031,2.51581321,191.94,191.91,5.89077559]
[1761388178325,1.81581321,191.94,191.91,5.89077559]
[1761388178725,2.51581321,191.94,191.91,5.89077559]
[1761388179104,1.81581321,191.94,191.91,5.89077559]
[1761388179629,2.51581321,191.94,191.91,5.89077559]
[1761388180731,1.81581321,191.94,191.92,0.68]
[1761388181119,0.14707759,191.94,191.92,0.68]
[1761388185740,1.81581321,191.94,191.91,0.68]
[1761388185943,1.81581321,191.94,191.92,0.68]
[1761388187440,1.81581321,191.94,191.86,13.03033461]
[1761388187441,1.66873562,191.93,191.86,13.03033461]
[1761388187642,1.66873562,191.89,191.87,0.68]
[1761388187849,1.66873562,191.89,191.86,5.89213384]
[1761388188823,1.66873562,191.88,191.86,5.89213384]
[1761388191151,1.66873562,191.88,191.86,5.21213384]
[1761388191328,1.66873562,191.88,191.86,5.87213384]
[1761388191652,2.53581321,191.87,191.85,0.1]
[1761388191825,1.66873562,191.86,191.85,0.1]
[1761388192030,2.38873562,191.86,191.85,0.1]
[1761388192841,1.66873562,191.86,191.85,0.1]
[1761388193537,2.38873562,191.86,191.85,0.1]
[1761388194548,13.26521083,191.86,191.85,0.1]
[1761388194747,18.62442226,191.86,191.85,0.1]
[1761388197529,18.25689972,191.86,191.85,0.1]
[1761388200365,22.06983813,191.86,191.85,0.1]
[1761388200869,22.56983813,191.86,191.85,0.1]
[1761388202158,18.75689972,191.86,191.85,0.1]
[1761388202349,22.56935845,191.86,191.85,0.1]
[1761388203447,18.75689972,191.86,191.85,0.1]
[1761388205540,13.91228842,191.86,191.85,0.1]
[1761388205741,23.38,191.86,191.85,0.1]
[1761388205941,25.04873562,191.86,191.85,0.1]
[1761388206846,25.04873562,191.86,191.85,0.8]
[1761388207369,25.75873562,191.86,191.85,0.1]
[1761388207536,81.96186264,191.86,191.85,0.1]
[1761388208370,78.15442226,191.86,191.85,0.1]
[1761388209448,41.99442226,191.86,191.85,0.1]
[1761388209670,78.15442226,191.86,191.85,0.1]
[1761388211464,10.87647521,191.85,191.83,0.1]
[1761388211664,0.14707759,191.84,191.83,0.1]
[1761388211985,72.44228842,191.84,191.83,0.1]
[1761388212263,74.53002557,191.84,191.83,0.1]
[1761388213466,79.7427028,191.84,191.83,0.1]
[1761388213965,44.0827028,191.84,191.83,0.1]
[1761388214167,80.2427028,191.84,191.83,0.1]
[1761388216572,41.28496565,191.84,191.83,0.1]
[1761388216772,77.44496565,191.84,191.83,0.1]
[1761388217973,78.15496565,191.84,191.83,0.1]
[1761388227098,77.44496565,191.84,191.83,0.1]
[1761388229093,23.52707759,191.84,191.83,0.81]
[1761388229298,23.02707759,191.84,191.83,0.81]
[1761388229486,1.81581321,191.84,191.83,0.81]
[1761388230076,1.81581321,191.84,191.83,0.1]
[1761388230391,1.81581321,191.84,191.83,0.81]
[1761388230597,1.81581321,191.84,191.83,0.1]
[1761388230999,18.60496565,191.84,191.83,0.1]
[1761388231195,54.76496565,191.84,191.83,0.1]
[1761388232404,54.06496565,191.84,191.83,0.1]
[1761388232609,48.85228842,191.84,191.83,0.81]
[1761388233386,24.54873562,191.84,191.83,0.81]
[1761388234393,24.54873562,191.84,191.83,0.1]
[1761388234803,25.49004011,191.84,191.83,0.1]
[1761388235100,42.27919255,191.84,191.83,0.1]
[1761388235278,41.57919255,191.84,191.83,0.1]
[1761388235578,41.72627014,191.84,191.83,0.1]
[1761388237383,45.55153463,191.84,191.83,0.1]
[1761388238314,46.25153463,191.84,191.83,0.1]
[1761388238887,43.64149452,191.84,191.83,0.1]
[1761388239104,81.71153463,191.84,191.83,0.1]
[1761388239308,82.41232236,191.84,191.83,0.1]
[1761388242809,82.91232236,191.84,191.83,0.1]
[1761388245688,82.21232236,191.84,191.83,0.1]
[1761388247820,46.05232236,191.84,191.83,0.1]
[1761388248116,82.91232236,191.84,191.83,0.1]
[1761388248490,79.60228225,191.84,191.83,0.1]
[1761388248699,4.32605222,191.84,191.83,0.81]
[1761388249013,2.61004011,191.87,191.83,0.81]
[1761388249220,3.97658344,191.86,191.83,0.81]
[1761388251606,6.58662355,191.86,191.83,0.81]
[1761388251790,3.82950585,191.85,191.83,0.81]
[1761388254421,2.7571177,191.86,191.83,0.81]
[1761388260419,125.08,191.87,191.83,8.63297609]
[1761388260818,125.08,191.87,191.84,0.72]
[1761388261125,125.08,191.87,191.84,3.33004011]
[1761388261321,2.61004011,191.9,191.84,3.33004011]
[1761388261527,3.82741984,191.89,191.85,3.33004011]
[1761388261825,3.82741984,191.88,191.86,5.21213384]
[1761388262127,2.7571177,191.91,191.86,5.93213384]
[1761388262331,3.82763458,191.9,191.87,0.72]
[1761388263004,22.88,191.91,191.87,0.72]
[1761388263909,22.88,191.91,191.87,5.93167961]
[1761388264827,22.88,191.91,191.88,0.72]
[1761388265624,25.49004011,191.91,191.88,0.72]
[1761388266828,2.61004011,191.92,191.88,0.72]
[1761388267530,2.61004011,191.92,191.88,5.93148552]
[1761388268106,2.61004011,191.92,191.89,0.72]
[1761388268335,3.33004011,191.92,191.89,0.72]
[1761388269415,3.33004011,191.92,191.88,0.72]
[1761388269729,3.33004011,191.92,191.87,5.21186219]
[1761388269938,3.33004011,191.92,191.89,0.72]
[1761388270107,2.61004011,191.91,191.89,0.72]
[1761388274915,0.86707759,191.92,191.89,0.72]
[1761388275115,2.61004011,191.91,191.89,0.72]
[1761388278150,2.61004011,191.91,191.87,5.21186219]
[1761388278323,6.07760515,191.92,191.88,0.72]
[1761388278525,2.61004011,191.91,191.88,0.72]
[1761388278923,2.61004011,191.9,191.88,0.72]
[1761388280444,2.61004011,191.91,191.88,0.72]
[1761388280753,3.11004011,191.91,191.88,0.72]
[1761388281634,0.5,191.91,191.88,0.72]
[1761388282028,0.5,191.91,191.88,5.93151301]
[1761388282533,0.5,191.91,191.89,0.68]
[1761388283238,2.61004011,191.92,191.89,0.68]
[1761388287466,125.08,191.93,191.89,5.89110719]
[1761388287637,22.88,191.94,191.91,2.61004011]
[1761388287833,3.4171177,191.97,191.92,0.68]
[1761388288029,26.70218894,191.96,191.92,0.68]
[1761388288227,22.88,191.95,191.92,0.68]
[1761388288660,3.27004011,191.96,191.92,0.68]
[1761388288822,25.6371177,191.97,191.92,5.8902338]
[1761388289028,23.68707759,191.97,191.92,5.8902338]
[1761388289225,26.2971177,191.97,191.93,0.68]
[1761388289531,23.68707759,191.97,191.93,0.68]
[1761388290134,23.54,191.97,191.93,5.89012439]
[1761388290527,23.54,191.97,191.94,0.68]
[1761388290754,22.88,191.97,191.94,0.68]
[1761388291464,102.2,191.98,191.94,0.68]
[1761388291833,36.36651532,192.01,191.95,2.61004011]
[1761388292043,3.97169387,192.0,191.95,2.61004011]
[1761388292230,3.97169387,192.0,191.96,5.88941862]
[1761388292726,3.97169387,192.0,191.97,0.68]
[1761388294364,3.82461628,192.0,191.97,5.88911995]
[1761388294535,3.82461628,192.0,191.98,0.68]
[1761388295534,22.88,192.01,191.98,0.68]
[1761388296251,22.88,192.01,191.98,5.8888717]
[1761388296429,22.88,192.01,191.99,0.68]
[1761388296831,7.0218832,192.03,191.99,0.68]
[1761388296832,23.02707759,192.03,191.99,0.68]
[1761388297031,3.82407471,192.02,191.99,0.68]
[1761388297239,0.80707759,192.03,191.99,5.88858545]
[1761388297439,4.63040066,192.03,191.99,5.88858545]
[1761388297636,27.51040066,192.03,192.0,0.68]
[1761388297838,23.68707759,192.03,192.0,0.68]
[1761388298747,0.2,192.05,192.0,7.55550685]
[1761388299045,0.2,192.05,192.0,20.57634018]
[1761388299248,0.2,192.05,192.01,7.55585396]
[1761388299639,2.52726851,192.05,192.01,0.68]
[1761388299870,2.52726851,192.05,192.0,5.20823834]
[1761388300154,0.66,192.04,192.0,8.36258444]
[1761388300533,0.66,192.04,192.0,3.1543461]
[1761388300737,1.66726851,192.01,191.96,0.68]
[1761388301046,1.66726851,192.01,191.96,13.70230038]
[1761388301246,2.32726851,192.01,191.97,0.68]
[1761388301959,1.66726851,192.01,191.97,5.88892207]
[1761388302154,24.54726851,192.02,191.97,5.88892207]
[1761388302348,24.54726851,192.02,191.98,0.68]
[1761388302662,22.88,192.02,191.98,0.68]
[1761388303054,0.14707759,192.04,191.98,2.34726851]
[1761388303363,1.8143461,192.04,191.99,0.68]
[1761388303743,2.32726851,192.03,191.99,0.68]
[1761388304056,2.32726851,192.03,191.99,5.8885266]
[1761388305437,59.34707759,192.05,192.0,0.68]
[1761388305637,61.6743461,192.05,192.0,0.68]
[1761388306050,61.0143461,192.05,192.0,0.68]
[1761388306373,61.6743461,192.05,192.0,0.68]
[1761388306544,25.5543461,192.05,192.0,0.68]
[1761388306742,25.5543461,192.05,192.01,5.20806208]
[1761388307658,25.5543461,192.05,192.01,5.88806208]
[1761388307955,0.66,192.04,192.01,5.88806208]
[1761388309264,2.32726851,192.04,192.01,5.88806208]
[1761388311160,0.66,192.04,192.01,5.88806208]
[1761388311360,23.08,192.05,192.02,0.66]
[1761388312059,23.08,192.05,192.02,2.32726851]
[1761388312466,23.08,192.05,192.03,0.66]
[1761388313462,0.2,192.05,192.03,0.66]
[1761388315045,0.2,192.05,192.03,5.86749682]
[1761388315255,0.2,192.05,192.04,0.66]
[1761388315653,0.2,192.05,192.04,5.86724848]
[1761388315854,0.2,192.05,192.04,7.53451699]
[1761388316060,0.2,192.05,192.04,12.74201381]
[1761388321394,0.2,192.05,192.04,10.4147453]
[1761388321671,0.2,192.05,192.04,5.20724848]
[1761388328380,0.92,192.05,192.04,5.20724848]
[1761388328977,0.2,192.05,192.04,5.20724848]
[1761388329279,0.2,192.05,192.03,5.20751965]
[1761388329469,0.2,192.05,192.03,5.87751965]
[1761388329862,0.2,192.05,192.03,5.20751965]
[1761388334473,0.2,192.05,192.03,6.87478816]
[1761388335073,0.2,192.05,192.03,7.54478816]
[1761388336787,0.2,192.05,192.03,6.87478816]
[1761388337786,0.2,192.05,192.03,5.20751965]
[1761388338576,0.72,192.04,192.03,5.20751965]
[1761388339182,0.92,192.05,192.03,5.20751965]
[1761388339690,0.92,192.05,192.02,5.20779085]
[1761388340176,0.92,192.05,192.02,20.58453649]
[1761388340377,0.2,192.05,192.02,20.58453649]
[1761388340575,0.2,192.05,192.03,2.35726851]
[1761388341087,0.2,192.05,192.04,0.69]
[1761388341287,0.2,192.05,192.03,2.35726851]
[1761388342991,0.2,192.05,192.04,5.20724848]
[1761388348883,0.2,192.05,192.03,5.20751965]
[1761388349295,0.87,192.05,192.03,5.20751965]
[1761388349804,0.2,192.05,192.03,5.20751965]
[1761388350404,0.2,192.05,192.03,6.87478816]
[1761388350782,0.87,192.05,192.03,5.20751965]
[1761388351895,0.2,192.05,192.03,6.87478816]
[1761388352301,0.2,192.05,192.04,2.35726851]
[1761388352487,0.2,192.05,192.04,38.45726851]
[1761388353203,0.2,192.05,192.04,40.54141596]
[1761388354104,0.2,192.05,192.04,45.74866444]
[1761388355294,0.2,192.05,192.04,7.98139593]
[1761388355608,0.2,192.05,192.04,43.64451699]
[1761388356799,0.2,192.05,192.04,44.57941705]
[1761388362688,0.2,192.06,192.04,44.57941705]
[1761388362689,0.2,192.06,192.05,2.60216857]
[1761388362893,0.2,192.06,192.05,3.29216857]
[1761388364608,0.2,192.06,192.05,8.49914591]
[1761388365017,1e-08,192.06,192.05,8.49914591]
[1761388380210,1e-08,192.09,192.06,0.71]
[1761388380408,1e-08,192.09,192.08,2.60216857]
[1761388381323,1e-08,192.09,192.08,7.80833266]
[1761388385951,0.66000001,192.09,192.08,5.20616409]
[1761388386165,0.66000001,192.09,192.08,43.88833266]
[1761388387753,1e-08,192.09,192.08,43.88833266]
[1761388388462,1e-08,192.09,192.08,44.59833266]
[1761388388963,1e-08,192.09,192.08,43.88833266]
[1761388389351,1e-08,192.09,192.08,44.59833266]
[1761388390128,1e-08,192.09,192.08,43.88833266]
[1761388393562,1e-08,192.09,192.08,45.11894906]
[1761388393881,1e-08,192.09,192.08,44.59833266]
[1761388394051,1e-08,192.09,192.08,43.88833266]
[1761388395789,1e-08,192.11,192.1,22.88]
[1761388396082,0.66000001,192.11,192.1,38.72216857]
[1761388396393,0.66000001,192.11,192.1,36.12]
[1761388396678,0.66000001,192.11,192.1,38.72216857]
[1761388397480,0.66000001,192.11,192.1,43.92779064]
[1761388399282,0.1470776,192.17,192.11,0.71]
[1761388399480,1e-08,192.17,192.16,2.60216857]
[1761388399694,1e-08,192.17,192.16,38.80216857]
[1761388399987,1e-08,192.17,192.16,39.49216857]
[1761388400352,0.2,192.18,192.16,39.49216857]
[1761388400353,0.2,192.19,192.17,0.69]
[1761388400554,0.2,192.19,192.18,38.80216857]
[1761388401060,0.87,192.19,192.18,38.80216857]
[1761388401277,0.87,192.19,192.18,44.00562366]
[1761388401873,0.2,192.19,192.18,44.00562366]
[1761388404169,1e-08,192.19,192.18,44.00562366]
[1761388404758,1e-08,192.19,192.18,44.69562366]
[1761388408498,1e-08,192.19,192.18,45.21596916]
[1761388408808,0.2,192.2,192.18,45.21596916]
[1761388408959,1e-08,192.2,192.19,0.69]
[1761388409999,1e-08,192.2,192.19,5.89318434]
[1761388412781,1e-08,192.2,192.19,5.20318434]
[1761388413187,0.67000001,192.2,192.19,43.96535291]
[1761388413864,1e-08,192.2,192.19,43.96535291]
[1761388415175,0.67000001,192.2,192.19,43.96535291]
[1761388415381,1e-08,192.2,192.19,43.96535291]
[1761388415580,0.67000001,192.2,192.19,43.96535291]
[1761388416578,0.67000001,192.2,192.19,7.80535291]
[1761388416793,0.67000001,192.2,192.19,43.96535291]
[1761388418697,0.67000001,192.2,192.19,43.02595948]
[1761388421404,1e-08,192.2,192.19,43.02595948]
[1761388425408,0.67000001,192.2,192.19,41.34318434]
[1761388425703,0.67000001,192.2,192.19,43.00595948]
[1761388425909,0.67000001,192.2,192.19,6.86595948]
[1761388426079,0.67000001,192.2,192.16,35.88964179]
[1761388426080,0.67000001,192.2,192.17,5.20372586]
[1761388426281,0.67000001,192.2,192.17,41.34372586]
[1761388431400,0.67000001,192.2,192.17,54.35304052]
[1761388431599,0.67000001,192.2,192.17,56.01581566]
[1761388432801,0.67000001,192.2,192.19,1.66277514]
[1761388433100,0.67000001,192.2,192.19,37.80277514]
[1761388433406,1e-08,192.2,192.19,43.00595948]
[1761388441525,0.2,192.21,192.2,0.71]
[1761388441526,1e-08,192.21,192.2,0.71]
[1761388441711,1e-08,192.21,192.2,2.37277514]
[1761388442090,1e-08,192.21,192.2,7.57568877]
[1761388443806,1e-08,192.21,192.2,8.09598013]
[1761388446010,1e-08,192.21,192.2,6.86568877]
[1761388446424,1e-08,192.21,192.2,7.57568877]
[1761388448702,1e-08,192.21,192.2,8.09598013]
[1761388450927,1e-08,192.21,192.2,5.72320499]
[1761388451093,1e-08,192.21,192.2,7.38598013]
[1761388451295,1e-08,192.21,192.2,8.09598013]
[1761388452007,1e-08,192.21,192.2,6.43320499]
[1761388452212,1e-08,192.21,192.2,8.09598013]
[1761388455110,1e-08,192.21,192.2,6.43320499]
[1761388455311,1e-08,192.21,192.2,8.09598013]
[1761388456004,1e-08,192.21,192.2,44.21598013]
[1761388458004,0.2,192.24,192.21,0.71]
[1761388458199,0.2,192.24,192.23,1.66277514]
[1761388460033,0.2,192.24,192.23,6.86487678]
[1761388461295,0.2,192.25,192.23,5.20210164]
[1761388461548,0.2,192.25,192.24,37.76277514]
[1761388462022,0.2,192.25,192.24,42.96460618]
[1761388464719,0.2,192.25,192.24,43.61460618]
[1761388464923,0.2,192.26,192.25,1.66277514]
[1761388466004,0.2,192.26,192.25,6.8643356]
[1761388469336,0.2,192.26,192.25,7.5143356]
[1761388469534,0.2,192.26,192.2,24.87999999]
[1761388469535,33.75647521,192.25,192.11,0.65]
[1761388469712,23.53019505,192.25,192.2,1.66277514]
[1761388469918,0.7,192.24,192.2,1.66277514]
[1761388470135,0.7,192.24,192.19,30.00277514]
[1761388470332,16.32052537,192.24,192.19,30.00277514]
[1761388470638,0.7,192.23,192.19,30.00277514]
[1761388471840,0.7,192.23,192.2,5.20291363]
[1761388472820,0.65029653,192.22,192.19,36.24]
[1761388473049,0.7,192.21,192.19,36.24]
[1761388473343,0.7,192.21,192.18,41.44327553]
[1761388473718,16.32296575,192.21,192.18,41.44327553]
[1761388473941,16.97329611,192.21,192.18,41.44327553]
[1761388474136,0.7,192.2,192.18,41.44327553]
[1761388474440,3.01313934,192.2,192.17,41.46372586]
[1761388474636,18.63691873,192.2,192.17,36.26]
[1761388474823,0.7,192.19,192.17,36.26]
[1761388475422,16.3245931,192.19,192.17,36.26]
[1761388476038,0.7,192.18,192.17,36.26]
[1761388477638,0.7,192.18,192.15,36.26]
[1761388478635,1.66277514,192.17,192.14,36.24]
[1761388479036,0.7,192.16,192.14,36.24]
[1761388479620,0.7,192.16,192.14,41.44453557]
[1761388480048,0.7,192.16,192.14,5.20453557]
[1761388480347,0.7,192.16,192.14,41.46453557]
[1761388481238,0.65053343,192.15,192.1,7.80625557]
[1761388481553,2.6006335,192.15,192.11,36.26]
[1761388481737,0.7,192.14,192.11,41.46522607]
[1761388482047,0.7,192.14,192.12,36.26]
[1761388482926,0.7,192.14,192.12,41.46484161]
[1761388484133,0.7,192.14,192.1,7.80625557]
[1761388484335,3.95120079,192.14,192.11,36.26]
[1761388484639,1.35056729,192.14,192.11,36.26]
[1761388484945,0.7,192.13,192.11,36.26]
[1761388485346,0.7,192.13,192.11,41.46525095]
[1761388486850,0.7,192.13,192.06,13.01657942]
[1761388487030,0.7,192.13,192.07,36.26]
[1761388487031,3.25126851,192.12,192.07,36.26]
[1761388487432,0.7,192.11,192.07,38.8606335]
[1761388487927,0.7,192.11,192.07,5.20643515]
[1761388488140,0.7,192.11,192.08,36.26]
[1761388489553,0.65070275,192.1,192.08,36.26]
[1761388490137,0.66,192.09,192.05,5.20697734]
[1761388490342,0.66,192.09,192.04,0.1]
[1761388490343,0.65077051,192.08,192.04,5.30720629]